[Event "Late-Titled-Tuesday-Blitz-February-27-2024"]
[Site "Chess.com"]
[Date "2024.02.27"]
[Round "5"]
[White "szachmistrz2500"]
[Black "Zavgorodniy_Sergiy"]
[Result "1-0"]
[WhiteElo "2444"]
[BlackElo "2616"]
[TimeControl "180+1"]
[EndTime "14:56:49 PST"]
[Termination "szachmistrz2500 won on time"]

1. d4 {[%clk 0:02:51.5]} 1... d5 {[%clk 0:03:00]} 2. c4 {[%clk 0:02:49]} 2...
dxc4 {[%clk 0:03:00.9]} 3. Nf3 {[%clk 0:02:48.4]} 3... Nf6 {[%clk 0:03:01.3]} 4.
e3 {[%clk 0:02:48.8]} 4... e6 {[%clk 0:03:01.6]} 5. Bxc4 {[%clk 0:02:49]} 5...
a6 {[%clk 0:03:02.5]} 6. a4 {[%clk 0:02:48.8]} 6... c5 {[%clk 0:03:02.5]} 7. O-O
{[%clk 0:02:48.5]} 7... Nc6 {[%clk 0:03:02.7]} 8. Qe2 {[%clk 0:02:49]} 8... cxd4
{[%clk 0:03:02.8]} 9. Rd1 {[%clk 0:02:48.9]} 9... Be7 {[%clk 0:03:02.7]} 10.
exd4 {[%clk 0:02:49.2]} 10... O-O {[%clk 0:03:02.7]} 11. Ne5 {[%clk 0:02:49.1]}
11... Nb4 {[%clk 0:02:44.3]} 12. Ra3 {[%clk 0:02:46.4]} 12... b6 {[%clk
0:02:38.5]} 13. Rg3 {[%clk 0:02:44.5]} 13... g6 {[%clk 0:02:20]} 14. Bh6 {[%clk
0:02:42.1]} 14... Re8 {[%clk 0:02:20.3]} 15. Nc3 {[%clk 0:02:38.8]} 15... Nfd5
{[%clk 0:02:10.7]} 16. Qf3 {[%clk 0:02:32.4]} 16... Bf6 {[%clk 0:01:34.8]} 17.
Bg5 {[%clk 0:02:19]} 17... Ra7 {[%clk 0:01:18.7]} 18. Nxd5 {[%clk 0:02:07.5]}
18... Bxg5 {[%clk 0:01:10.4]} 19. Nxb4 {[%clk 0:02:04.9]} 19... Rc7 {[%clk
0:00:52.8]} 20. Nxa6 {[%clk 0:01:53.2]} 20... Bb7 {[%clk 0:00:46]} 21. Qg4
{[%clk 0:01:44.9]} 21... Rxc4 {[%clk 0:00:41.5]} 22. Nxc4 {[%clk 0:01:31.8]}
22... Bxa6 {[%clk 0:00:41.7]} 23. Qxg5 {[%clk 0:01:22]} 23... Bxc4 {[%clk
0:00:41.7]} 24. Qxd8 {[%clk 0:01:18.6]} 24... Rxd8 {[%clk 0:00:42.6]} 25. Rc3
{[%clk 0:01:18.4]} 25... Bd5 {[%clk 0:00:40.9]} 26. Rdc1 {[%clk 0:01:17.1]}
26... Kg7 {[%clk 0:00:38.9]} 27. Rc8 {[%clk 0:01:16]} 27... Rd6 {[%clk
0:00:39.1]} 28. f3 {[%clk 0:01:10.5]} 28... Bb3 {[%clk 0:00:38.5]} 29. Rb8
{[%clk 0:01:04.7]} 29... Bxa4 {[%clk 0:00:36.3]} 30. Rc7 {[%clk 0:00:59.2]}
30... Rxd4 {[%clk 0:00:31.7]} 31. Rxb6 {[%clk 0:00:58.7]} 31... Rd1+ {[%clk
0:00:29.2]} 32. Kf2 {[%clk 0:00:58.9]} 32... Rd2+ {[%clk 0:00:30.1]} 33. Kg3
{[%clk 0:00:58.4]} 33... e5 {[%clk 0:00:23.4]} 34. Re7 {[%clk 0:00:53.7]} 34...
Kf8 {[%clk 0:00:21.2]} 35. Rbb7 {[%clk 0:00:53.4]} 35... Be8 {[%clk 0:00:19.8]}
36. Rec7 {[%clk 0:00:53.5]} 36... Rd8 {[%clk 0:00:13.8]} 37. Re7 {[%clk
0:00:49]} 37... Rc8 {[%clk 0:00:12.3]} 38. Rxe5 {[%clk 0:00:48.5]} 38... Bc6
{[%clk 0:00:11.6]} 39. Ra7 {[%clk 0:00:47.2]} 39... Rb8 {[%clk 0:00:09.8]} 40.
Rc5 {[%clk 0:00:47.3]} 40... Be8 {[%clk 0:00:07.8]} 41. Re5 {[%clk 0:00:42.3]}
41... Bc6 {[%clk 0:00:05.7]} 42. Ree7 {[%clk 0:00:36.6]} 42... Bd5 {[%clk
0:00:06]} 43. Red7 {[%clk 0:00:35.5]} 43... Be6 {[%clk 0:00:05.9]} 44. Rdb7
{[%clk 0:00:35.5]} 44... Rc8 {[%clk 0:00:06]} 45. b4 {[%clk 0:00:35.4]} 45...
Rc2 {[%clk 0:00:05.5]} 46. b5 {[%clk 0:00:31.3]} 46... Rb2 {[%clk 0:00:05.7]}
47. b6 {[%clk 0:00:31.7]} 47... Kg7 {[%clk 0:00:03.6]} 48. h4 {[%clk 0:00:31.6]}
48... h5 {[%clk 0:00:03.6]} 49. Re7 {[%clk 0:00:31.4]} 49... Kf6 {[%clk
0:00:03.8]} 50. Reb7 {[%clk 0:00:27.8]} 50... Bc4 {[%clk 0:00:02.6]} 51. Rb8
{[%clk 0:00:27.5]} 51... Bf1 {[%clk 0:00:01.8]} 52. Rc7 {[%clk 0:00:25.8]} 52...
Rxg2+ {[%clk 0:00:01.4]} 53. Kf4 {[%clk 0:00:26.1]} 53... Rb2 {[%clk 0:00:01.9]}
54. b7 {[%clk 0:00:26.2]} 54... Rb4+ {[%clk 0:00:01.7]} 55. Kg3 {[%clk
0:00:24.9]} 55... Ba6 {[%clk 0:00:01.7]} 56. Rg8 {[%clk 0:00:25]} 1-0

[Event "Late-Titled-Tuesday-Blitz-February-27-2024"]
[Site "Chess.com"]
[Date "2024.02.27"]
[Round "5"]
[White "Sjakkerntobi"]
[Black "NMJeevanK"]
[Result "1/2-1/2"]
[WhiteElo "2462"]
[BlackElo "2599"]
[TimeControl "180+1"]
[EndTime "14:56:49 PST"]
[Termination "Game drawn by agreement"]

1. e4 {[%clk 0:03:00.9]} 1... e5 {[%clk 0:02:58.7]} 2. Nf3 {[%clk 0:03:00.5]}
2... Nc6 {[%clk 0:02:58.6]} 3. Nc3 {[%clk 0:03:00.5]} 3... Nf6 {[%clk 0:02:56]}
4. a3 {[%clk 0:03:01]} 4... Be7 {[%clk 0:02:52.3]} 5. d4 {[%clk 0:02:59.7]} 5...
d6 {[%clk 0:02:51.1]} 6. dxe5 {[%clk 0:02:57.9]} 6... dxe5 {[%clk 0:02:52]} 7.
Qxd8+ {[%clk 0:02:57.6]} 7... Bxd8 {[%clk 0:02:52.9]} 8. Bc4 {[%clk 0:02:55.4]}
8... O-O {[%clk 0:02:50.6]} 9. Be3 {[%clk 0:02:54]} 9... Be7 {[%clk 0:02:47.1]}
10. h3 {[%clk 0:02:51.4]} 10... a6 {[%clk 0:02:44.2]} 11. O-O-O {[%clk
0:02:50.9]} 11... h6 {[%clk 0:02:30.2]} 12. Nd5 {[%clk 0:02:31.3]} 12... Bd8
{[%clk 0:02:06]} 13. Bc5 {[%clk 0:02:18]} 13... Re8 {[%clk 0:02:00.1]} 14. Rhe1
{[%clk 0:02:13.4]} 14... b6 {[%clk 0:01:49.6]} 15. Nxf6+ {[%clk 0:02:07.7]}
15... Bxf6 {[%clk 0:01:47.4]} 16. Be3 {[%clk 0:01:55.9]} 16... b5 {[%clk
0:01:30.3]} 17. Bd5 {[%clk 0:01:53.9]} 17... Bb7 {[%clk 0:01:30.6]} 18. Nd2
{[%clk 0:01:53.4]} 18... Rab8 {[%clk 0:01:26]} 19. Nb3 {[%clk 0:01:53.3]} 19...
Be7 {[%clk 0:01:18.9]} 20. Nc5 {[%clk 0:01:41.7]} 20... Bxc5 {[%clk 0:01:12.9]}
21. Bxc5 {[%clk 0:01:42.6]} 21... Na5 {[%clk 0:01:04.2]} 22. Ba2 {[%clk
0:01:29.5]} 22... Bc6 {[%clk 0:01:02.8]} 23. f3 {[%clk 0:01:15.9]} 23... Nb7
{[%clk 0:01:02.2]} 24. Be3 {[%clk 0:01:13.2]} 24... Kf8 {[%clk 0:00:55.9]} 25.
h4 {[%clk 0:01:10.8]} 25... Red8 {[%clk 0:00:49.8]} 26. Rxd8+ {[%clk 0:01:07.4]}
26... Rxd8 {[%clk 0:00:49.6]} 27. Rd1 {[%clk 0:01:08.3]} 27... Rc8 {[%clk
0:00:35.8]} 28. g4 {[%clk 0:01:05]} 28... Ke7 {[%clk 0:00:33.4]} 29. h5 {[%clk
0:01:03.7]} 29... f6 {[%clk 0:00:32.5]} 30. Rd3 {[%clk 0:00:53.6]} 30... Be8
{[%clk 0:00:32.4]} 31. Bd5 {[%clk 0:00:49.9]} 31... c6 {[%clk 0:00:32.7]} 32.
Ba2 {[%clk 0:00:49.6]} 32... c5 {[%clk 0:00:32.5]} 33. Bd5 {[%clk 0:00:49.7]}
33... Nd6 {[%clk 0:00:32.1]} 34. c4 {[%clk 0:00:42.7]} 34... bxc4 {[%clk
0:00:30]} 35. Rc3 {[%clk 0:00:40.1]} 35... Bb5 {[%clk 0:00:29.6]} 36. a4 {[%clk
0:00:32.8]} 36... Bxa4 {[%clk 0:00:29.2]} 37. Bxc4 {[%clk 0:00:33.4]} 37... Nxc4
{[%clk 0:00:18.4]} 38. Rxc4 {[%clk 0:00:34.2]} 38... Bb5 {[%clk 0:00:16.8]} 39.
Rxc5 {[%clk 0:00:34.4]} 39... Rxc5+ {[%clk 0:00:11]} 40. Bxc5+ {[%clk
0:00:34.5]} 40... Ke6 {[%clk 0:00:10.8]} 41. Kd2 {[%clk 0:00:35.1]} 41... Kf7
{[%clk 0:00:10.1]} 42. Ke3 {[%clk 0:00:34.7]} 42... g6 {[%clk 0:00:10.3]} 43.
hxg6+ {[%clk 0:00:28.6]} 43... Kxg6 {[%clk 0:00:11.2]} 44. Be7 {[%clk
0:00:28.7]} 44... Bc4 {[%clk 0:00:10.8]} 45. b4 {[%clk 0:00:27.9]} 45... Bb5
{[%clk 0:00:11]} 46. Kd2 {[%clk 0:00:21.5]} 46... Bc4 {[%clk 0:00:11]} 47. Ke1
{[%clk 0:00:22.1]} 47... Bb5 {[%clk 0:00:11.3]} 48. Kf2 {[%clk 0:00:22.8]} 48...
Kg5 {[%clk 0:00:11.3]} 49. Kg3 {[%clk 0:00:23.7]} 49... Kg6 {[%clk 0:00:11.7]}
50. f4 {[%clk 0:00:23.6]} 50... exf4+ {[%clk 0:00:11.5]} 51. Kxf4 {[%clk
0:00:24.5]} 51... Bc4 {[%clk 0:00:11.5]} 52. e5 {[%clk 0:00:24.2]} 52... fxe5+
{[%clk 0:00:11.7]} 53. Kxe5 {[%clk 0:00:25.1]} 53... Be2 {[%clk 0:00:11.9]} 54.
Kf4 {[%clk 0:00:25.4]} 54... Bb5 {[%clk 0:00:12.3]} 55. Kg3 {[%clk 0:00:24.4]}
55... Bc4 {[%clk 0:00:12.7]} 56. Kh4 {[%clk 0:00:24.9]} 56... Bb5 {[%clk
0:00:13.1]} 57. g5 {[%clk 0:00:24.9]} 57... hxg5+ {[%clk 0:00:12.9]} 58. Bxg5
{[%clk 0:00:25.8]} 58... Kf5 {[%clk 0:00:13.8]} 59. Bd8 {[%clk 0:00:25.9]} 59...
Ke4 {[%clk 0:00:14.7]} 60. Ba5 {[%clk 0:00:26.8]} 60... Kd5 {[%clk 0:00:15.5]}
61. Kg5 {[%clk 0:00:27.6]} 61... Kc6 {[%clk 0:00:16.4]} 62. Kf6 {[%clk
0:00:28.5]} 62... Kb7 {[%clk 0:00:17.3]} 63. Kf5 {[%clk 0:00:29.4]} 63... Ka8
{[%clk 0:00:18.1]} 64. Ke5 {[%clk 0:00:30]} 64... Kb7 {[%clk 0:00:16.8]} 1/2-1/2

[Event "Late-Titled-Tuesday-Blitz-February-27-2024"]
[Site "Chess.com"]
[Date "2024.02.27"]
[Round "5"]
[White "Eloist"]
[Black "jaramsdal"]
[Result "1-0"]
[WhiteElo "2464"]
[BlackElo "2269"]
[TimeControl "180+1"]
[EndTime "14:56:49 PST"]
[Termination "Eloist won on time"]

1. e4 {[%clk 0:03:00.9]} 1... e5 {[%clk 0:02:52.7]} 2. Nf3 {[%clk 0:02:59.9]}
2... Nc6 {[%clk 0:02:52.6]} 3. Bc4 {[%clk 0:02:59.6]} 3... Nf6 {[%clk
0:02:49.6]} 4. d3 {[%clk 0:02:59.3]} 4... Bc5 {[%clk 0:02:49]} 5. O-O {[%clk
0:02:58.7]} 5... a6 {[%clk 0:02:49.3]} 6. c3 {[%clk 0:02:58.5]} 6... d6 {[%clk
0:02:47.8]} 7. a4 {[%clk 0:02:54.7]} 7... h6 {[%clk 0:02:29.8]} 8. Re1 {[%clk
0:02:49.9]} 8... O-O {[%clk 0:02:28]} 9. Nbd2 {[%clk 0:02:46.6]} 9... Re8 {[%clk
0:02:19.3]} 10. b4 {[%clk 0:02:43.3]} 10... Ba7 {[%clk 0:02:18.2]} 11. Nf1
{[%clk 0:02:33.8]} 11... Be6 {[%clk 0:02:17.1]} 12. Bxe6 {[%clk 0:02:32.4]}
12... Rxe6 {[%clk 0:02:12.2]} 13. Be3 {[%clk 0:02:30.2]} 13... d5 {[%clk
0:02:02.7]} 14. Bxa7 {[%clk 0:02:27.9]} 14... Rxa7 {[%clk 0:02:00.5]} 15. b5
{[%clk 0:02:20]} 15... Ne7 {[%clk 0:01:41.8]} 16. Qb3 {[%clk 0:02:07.4]} 16...
dxe4 {[%clk 0:01:33.5]} 17. dxe4 {[%clk 0:02:05.7]} 17... Ng6 {[%clk 0:01:27.2]}
18. Rad1 {[%clk 0:01:58.3]} 18... Rd6 {[%clk 0:01:21]} 19. Rxd6 {[%clk
0:01:47.1]} 19... Qxd6 {[%clk 0:01:21.9]} 20. Rd1 {[%clk 0:01:44.6]} 20... Qe7
{[%clk 0:01:21.6]} 21. Ng3 {[%clk 0:01:40]} 21... axb5 {[%clk 0:01:14.2]} 22.
Nf5 {[%clk 0:01:23]} 22... Qe6 {[%clk 0:01:02.7]} 23. Qxb5 {[%clk 0:01:13.4]}
23... Nxe4 {[%clk 0:00:55.4]} 24. Rd8+ {[%clk 0:01:09.3]} 24... Kh7 {[%clk
0:00:55.2]} 25. Ne3 {[%clk 0:00:45.5]} 25... Nd6 {[%clk 0:00:55]} 26. Qc5 {[%clk
0:00:39.9]} 26... Rxa4 {[%clk 0:00:51.2]} 27. h4 {[%clk 0:00:32.6]} 27... Ra1+
{[%clk 0:00:46.4]} 28. Kh2 {[%clk 0:00:31.9]} 28... e4 {[%clk 0:00:43.7]} 29.
Nd4 {[%clk 0:00:27]} 29... Qe5+ {[%clk 0:00:42.4]} 30. Qxe5 {[%clk 0:00:27]}
30... Nxe5 {[%clk 0:00:43.3]} 31. Nef5 {[%clk 0:00:20.6]} 31... Nxf5 {[%clk
0:00:37.8]} 32. Nxf5 {[%clk 0:00:21.5]} 32... Rc1 {[%clk 0:00:23.3]} 33. Re8
{[%clk 0:00:21.7]} 33... Nd3 {[%clk 0:00:17.1]} 34. Rxe4 {[%clk 0:00:17.6]}
34... Rxc3 {[%clk 0:00:16.2]} 35. Re7 {[%clk 0:00:14.9]} 35... Kg6 {[%clk
0:00:15.5]} 36. Ne3 {[%clk 0:00:14.6]} 36... Nxf2 {[%clk 0:00:13]} 37. Nd5
{[%clk 0:00:14.1]} 37... Rc4 {[%clk 0:00:10.2]} 38. g3 {[%clk 0:00:11.5]} 38...
Ng4+ {[%clk 0:00:09.3]} 39. Kh3 {[%clk 0:00:11.2]} 39... h5 {[%clk 0:00:07.7]}
40. Nf4+ {[%clk 0:00:10.6]} 40... Kh6 {[%clk 0:00:08]} 41. Rxf7 {[%clk
0:00:10.3]} 41... Rc2 {[%clk 0:00:07.1]} 42. Ng2 {[%clk 0:00:10.1]} 42... b5
{[%clk 0:00:06.2]} 43. Rf5 {[%clk 0:00:06.6]} 43... b4 {[%clk 0:00:05.8]} 44.
Rb5 {[%clk 0:00:06.8]} 44... c5 {[%clk 0:00:05]} 45. Rb6+ {[%clk 0:00:06.5]}
45... g6 {[%clk 0:00:04.2]} 46. Rb7 {[%clk 0:00:04.6]} 46... Rb2 {[%clk
0:00:03.4]} 47. Rc7 {[%clk 0:00:03.6]} 1-0

[Event "Late-Titled-Tuesday-Blitz-February-27-2024"]
[Site "Chess.com"]
[Date "2024.02.27"]
[Round "5"]
[White "Oleksandr_Bortnyk"]
[Black "xasid81"]
[Result "1-0"]
[WhiteElo "3060"]
[BlackElo "2622"]
[TimeControl "180+1"]
[EndTime "14:56:50 PST"]
[Termination "Oleksandr_Bortnyk won by resignation"]

1. d4 {[%clk 0:02:58.5]} 1... c6 {[%clk 0:02:57.9]} 2. Nc3 {[%clk 0:02:56.7]}
2... d5 {[%clk 0:02:54.5]} 3. Bf4 {[%clk 0:02:56.6]} 3... Nf6 {[%clk 0:02:45]}
4. e3 {[%clk 0:02:56.6]} 4... Bf5 {[%clk 0:02:41.6]} 5. Nf3 {[%clk 0:02:56.8]}
5... h6 {[%clk 0:02:38.1]} 6. Bd3 {[%clk 0:02:52.5]} 6... Bxd3 {[%clk
0:02:37.9]} 7. cxd3 {[%clk 0:02:53.4]} 7... e6 {[%clk 0:02:37.1]} 8. O-O {[%clk
0:02:53.8]} 8... Bd6 {[%clk 0:02:34.6]} 9. Ne5 {[%clk 0:02:53.7]} 9... O-O
{[%clk 0:02:32.4]} 10. Qb3 {[%clk 0:02:52.4]} 10... Qc7 {[%clk 0:02:27.9]} 11.
Rac1 {[%clk 0:02:51.4]} 11... a6 {[%clk 0:02:26.9]} 12. Na4 {[%clk 0:02:46.1]}
12... Nh5 {[%clk 0:02:14.1]} 13. Nb6 {[%clk 0:02:01.3]} 13... Ra7 {[%clk
0:01:56.6]} 14. Rfe1 {[%clk 0:01:54.9]} 14... Re8 {[%clk 0:01:46.7]} 15. g4
{[%clk 0:01:37.8]} 15... Nxf4 {[%clk 0:01:43.8]} 16. exf4 {[%clk 0:01:38.7]}
16... f6 {[%clk 0:01:41.3]} 17. Ng6 {[%clk 0:01:34.9]} 17... Bxf4 {[%clk
0:01:40.8]} 18. Nxd5 {[%clk 0:01:32.1]} 18... Bxh2+ {[%clk 0:01:25.6]} 19. Kg2
{[%clk 0:01:25.8]} 19... Qd6 {[%clk 0:00:44.8]} 20. Nde7+ {[%clk 0:01:26.2]}
20... Kf7 {[%clk 0:00:38.7]} 21. Re4 {[%clk 0:01:23.8]} 21... b5 {[%clk
0:00:31.2]} 22. Rh1 {[%clk 0:01:01.3]} 22... Raxe7 {[%clk 0:00:27.1]} 23. Nxe7
{[%clk 0:01:02.2]} 23... Rxe7 {[%clk 0:00:26.5]} 24. Rxh2 {[%clk 0:01:02.5]}
24... Qd5 {[%clk 0:00:24.8]} 25. Qxd5 {[%clk 0:00:55.3]} 25... cxd5 {[%clk
0:00:24.5]} 26. Re1 {[%clk 0:00:55.3]} 26... Nc6 {[%clk 0:00:24.9]} 27. Rc1
{[%clk 0:00:52.3]} 27... Nxd4 {[%clk 0:00:24.9]} 28. Rc8 {[%clk 0:00:52.5]}
28... a5 {[%clk 0:00:22.9]} 29. Rh1 {[%clk 0:00:51.4]} 29... a4 {[%clk
0:00:20.4]} 30. a3 {[%clk 0:00:48]} 30... e5 {[%clk 0:00:20.7]} 31. f3 {[%clk
0:00:41.5]} 31... e4 {[%clk 0:00:19.1]} 32. fxe4 {[%clk 0:00:35.4]} 32... dxe4
{[%clk 0:00:20]} 33. dxe4 {[%clk 0:00:35.4]} 33... Rxe4 {[%clk 0:00:20.9]} 34.
Kg3 {[%clk 0:00:30.3]} 34... Kg6 {[%clk 0:00:16.6]} 35. Rd1 {[%clk 0:00:26.2]}
35... Kg5 {[%clk 0:00:11.6]} 36. Rc5+ {[%clk 0:00:24.1]} 36... f5 {[%clk
0:00:11.7]} 37. gxf5 {[%clk 0:00:22.4]} 37... Nxf5+ {[%clk 0:00:12.6]} 38. Kf3
{[%clk 0:00:21.3]} 38... Re3+ {[%clk 0:00:12.7]} 39. Kf2 {[%clk 0:00:21.7]}
39... Rb3 {[%clk 0:00:12.8]} 40. Rg1+ {[%clk 0:00:21]} 40... Kf6 {[%clk
0:00:12.4]} 41. Rc2 {[%clk 0:00:18]} 41... h5 {[%clk 0:00:11.9]} 42. Rc6+ {[%clk
0:00:12]} 42... Ke5 {[%clk 0:00:07.8]} 43. Rg5 {[%clk 0:00:12.9]} 43... Rxb2+
{[%clk 0:00:06.2]} 44. Ke1 {[%clk 0:00:13.3]} 44... Rb1+ {[%clk 0:00:06.3]} 45.
Kd2 {[%clk 0:00:13]} 45... Rf1 {[%clk 0:00:06.1]} 46. Rc5+ {[%clk 0:00:09.1]}
46... Ke4 {[%clk 0:00:06.2]} 47. Rxb5 {[%clk 0:00:08.3]} 47... h4 {[%clk
0:00:05.3]} 48. Rg4+ {[%clk 0:00:08.3]} 48... Kf3 {[%clk 0:00:02]} 49. Rxf5+
{[%clk 0:00:08.5]} 49... Kxg4 {[%clk 0:00:02.9]} 50. Rxf1 {[%clk 0:00:09.4]}
50... Kg3 {[%clk 0:00:03.1]} 51. Rg1+ {[%clk 0:00:09.7]} 1-0

[Event "Late-Titled-Tuesday-Blitz-February-27-2024"]
[Site "Chess.com"]
[Date "2024.02.27"]
[Round "5"]
[White "jactorres"]
[Black "boguszp"]
[Result "0-1"]
[WhiteElo "2357"]
[BlackElo "2033"]
[TimeControl "180+1"]
[EndTime "14:56:50 PST"]
[Termination "boguszp won on time"]

1. e4 {[%clk 0:02:58.4]} 1... c6 {[%clk 0:02:59.1]} 2. d4 {[%clk 0:02:53.2]}
2... d5 {[%clk 0:02:58.5]} 3. exd5 {[%clk 0:02:53.7]} 3... cxd5 {[%clk
0:02:58.5]} 4. c4 {[%clk 0:02:54.4]} 4... Nf6 {[%clk 0:02:56.4]} 5. Nc3 {[%clk
0:02:54.5]} 5... Nc6 {[%clk 0:02:55]} 6. Bg5 {[%clk 0:02:55.1]} 6... Be6 {[%clk
0:02:52.1]} 7. c5 {[%clk 0:02:53.7]} 7... g6 {[%clk 0:02:50.9]} 8. Bxf6 {[%clk
0:02:54.2]} 8... exf6 {[%clk 0:02:49.9]} 9. Nf3 {[%clk 0:02:53]} 9... Bg7 {[%clk
0:02:50.1]} 10. Bb5 {[%clk 0:02:52.9]} 10... O-O {[%clk 0:02:50]} 11. h3 {[%clk
0:02:53.3]} 11... f5 {[%clk 0:02:48.7]} 12. O-O {[%clk 0:02:53.8]} 12... a6
{[%clk 0:02:44.3]} 13. Bxc6 {[%clk 0:02:42.8]} 13... bxc6 {[%clk 0:02:42.3]} 14.
Na4 {[%clk 0:02:43.4]} 14... f4 {[%clk 0:02:33.6]} 15. Nb6 {[%clk 0:02:42]}
15... Rb8 {[%clk 0:02:31.8]} 16. Qa4 {[%clk 0:02:37.9]} 16... Rxb6 {[%clk
0:02:22.2]} 17. cxb6 {[%clk 0:02:38.8]} 17... Qxb6 {[%clk 0:02:21.8]} 18. Rac1
{[%clk 0:01:58.8]} 18... Rc8 {[%clk 0:02:03.9]} 19. b3 {[%clk 0:01:43.7]} 19...
Bf5 {[%clk 0:02:01.4]} 20. Rfe1 {[%clk 0:01:35.7]} 20... Be4 {[%clk 0:02:00.2]}
21. Rcd1 {[%clk 0:00:53.5]} 21... a5 {[%clk 0:01:35.3]} 22. Ng5 {[%clk
0:00:35.9]} 22... Bf5 {[%clk 0:01:23.1]} 23. Nf3 {[%clk 0:00:18.3]} 23... Bd7
{[%clk 0:01:16.9]} 24. Qa3 {[%clk 0:00:18.1]} 24... Qb4 {[%clk 0:01:14.9]} 25.
Qxb4 {[%clk 0:00:18]} 25... axb4 {[%clk 0:01:14.9]} 26. Ne5 {[%clk 0:00:18.3]}
26... Be8 {[%clk 0:01:14.2]} 27. Rc1 {[%clk 0:00:17.9]} 27... Ra8 {[%clk
0:01:12.7]} 28. Rc2 {[%clk 0:00:17.6]} 28... Bxe5 {[%clk 0:01:10]} 29. Rxe5
{[%clk 0:00:16.6]} 29... Kf8 {[%clk 0:01:08.8]} 30. Rce2 {[%clk 0:00:16.1]}
30... h6 {[%clk 0:01:05.5]} 31. f3 {[%clk 0:00:16.5]} 31... g5 {[%clk
0:01:05.5]} 32. Kf2 {[%clk 0:00:16.4]} 32... f6 {[%clk 0:01:05.1]} 33. Re6
{[%clk 0:00:16.3]} 33... Kf7 {[%clk 0:01:05]} 34. Re1 {[%clk 0:00:15.4]} 34...
Rxa2+ {[%clk 0:01:02.3]} 35. R6e2 {[%clk 0:00:16]} 35... Rxe2+ {[%clk
0:01:01.7]} 36. Rxe2 {[%clk 0:00:16.9]} 36... Bd7 {[%clk 0:01:01.2]} 37. Rc2
{[%clk 0:00:17.2]} 37... Ke6 {[%clk 0:01:00.1]} 38. Ke2 {[%clk 0:00:17.2]} 38...
Kd6 {[%clk 0:01:00.6]} 39. Rc1 {[%clk 0:00:17.4]} 39... Bf5 {[%clk 0:01:01.1]}
40. Kd2 {[%clk 0:00:17.5]} 40... Bd7 {[%clk 0:01:00]} 41. Rh1 {[%clk 0:00:16.8]}
41... Bc8 {[%clk 0:00:59.3]} 42. h4 {[%clk 0:00:17.3]} 42... Ba6 {[%clk
0:00:59]} 43. hxg5 {[%clk 0:00:16.8]} 43... hxg5 {[%clk 0:00:59.1]} 44. Rh6
{[%clk 0:00:17]} 44... Ke6 {[%clk 0:00:58.8]} 45. Rh8 {[%clk 0:00:15.4]} 45...
Bf1 {[%clk 0:00:58]} 46. Rh2 {[%clk 0:00:14.1]} 46... f5 {[%clk 0:00:56.9]} 47.
Ke1 {[%clk 0:00:13.8]} 47... Bd3 {[%clk 0:00:55.4]} 48. Kd2 {[%clk 0:00:14.1]}
48... Bf1 {[%clk 0:00:55]} 49. Ke1 {[%clk 0:00:14.5]} 49... Bd3 {[%clk
0:00:54.6]} 50. Rh8 {[%clk 0:00:11.8]} 50... Bc2 {[%clk 0:00:53.6]} 51. Rc8
{[%clk 0:00:10.7]} 51... Kd7 {[%clk 0:00:52.4]} 52. Rg8 {[%clk 0:00:11.1]} 52...
Bxb3 {[%clk 0:00:52.6]} 53. Rxg5 {[%clk 0:00:10.5]} 53... Bc4 {[%clk 0:00:52.2]}
54. Kd2 {[%clk 0:00:09.7]} 54... b3 {[%clk 0:00:52]} 55. Kc3 {[%clk 0:00:07.9]}
55... Ke6 {[%clk 0:00:52.5]} 56. Rg6+ {[%clk 0:00:07.5]} 56... Kd7 {[%clk
0:00:51.3]} 57. Rf6 {[%clk 0:00:08]} 57... Bf1 {[%clk 0:00:50.7]} 58. Rxf5
{[%clk 0:00:04.3]} 58... Bxg2 {[%clk 0:00:51]} 59. Rxf4 {[%clk 0:00:04.1]} 59...
Bf1 {[%clk 0:00:48.2]} 60. Kxb3 {[%clk 0:00:04.2]} 60... Ke6 {[%clk 0:00:47]}
61. Kb4 {[%clk 0:00:03.5]} 61... Kd6 {[%clk 0:00:45.2]} 62. Rf6+ {[%clk
0:00:03]} 62... Kd7 {[%clk 0:00:44.7]} 63. Kc5 {[%clk 0:00:02.4]} 63... Bb5
{[%clk 0:00:43.9]} 64. f4 {[%clk 0:00:02.4]} 64... Ba4 {[%clk 0:00:42.3]} 65.
Rh6 {[%clk 0:00:01.7]} 65... Ke7 {[%clk 0:00:42.3]} 0-1